bitfinex-derivatives/quotes_SOLF0:USTF0_20241212
["timestamp","ask_amount","ask_price","bid_price","bid_amount"]
[1734001412760,14.87601222,230.04,229.92,5.33138812]
[1734001413054,14.87601222,230.04,229.93,5.33138812]
[1734001413259,14.87601222,230.04,229.92,2.1738]
[1734001413559,14.87601222,230.04,229.91,1.6861]
[1734001413761,2.04,230.04,229.92,5.33298173]
[1734001413963,2.1732,230.0,229.93,5.33298173]
[1734001414161,2.1732,230.0,229.95,2.1736]
[1734001414561,2.1733,229.98,229.91,14.52211222]
[1734001414759,2.1733,229.98,229.92,7.50784485]
[1734001414760,2.02,229.98,229.92,7.50784485]
[1734001415062,2.02,229.98,229.92,5.33394485]
[1734001415262,2.1734,229.97,229.93,2.1737]
[1734001415464,2.02,229.98,229.94,5.33394485]
[1734001415658,2.02,229.98,229.93,2.1737]
[1734001415858,4.1934,229.98,229.94,5.3350754]
[1734001416065,4.1934,229.98,229.93,2.1737]
[1734001416259,4.1934,229.98,229.94,5.33515402]
[1734001416460,2.02,229.98,229.86,12.83601222]
[1734001416660,2.02,229.98,229.84,88.22539198]
[1734001416661,14.85601222,229.98,229.87,5.33640842]
[1734001416861,14.85601222,229.98,229.84,88.22539198]
[1734001416862,14.85601222,229.98,229.88,5.33640842]
[1734001417058,2.174,229.91,229.89,5.33640842]
[1734001417257,2.174,229.91,229.9,5.33640842]
[1734001417474,2.02,229.93,229.84,86.20539198]
[1734001417662,2.1743,229.88,229.84,86.20539198]
[1734001417863,2.1743,229.88,229.86,5.33717788]
[1734001418068,2.1743,229.88,229.87,5.33717788]
[1734001418263,4.1943,229.88,229.84,86.20539198]
[1734001418465,2.1744,229.87,229.85,5.33672987]
[1734001418661,2.1744,229.87,229.84,86.20539198]
[1734001419169,2.02,229.88,229.84,86.20539198]
[1734001419468,2.02,229.88,229.85,5.33537374]
[1734001419768,2.02,229.88,229.84,86.20539198]
[1734001419965,2.02,229.88,229.85,5.33527733]
[1734001420173,2.02,229.88,229.84,88.37989198]
[1734001420969,2.02,229.88,229.85,5.33417278]
[1734001421176,2.02,229.88,229.84,88.37989198]
[1734001421468,2.02,229.88,229.85,5.33260933]
[1734001421671,4.1942,229.88,229.84,88.37989198]
[1734001421970,4.1942,229.88,229.85,5.33374161]
[1734001422170,4.1942,229.88,229.84,88.37989198]
[1734001422472,4.1942,229.88,229.85,5.33373079]
[1734001422668,4.1942,229.88,229.84,88.37989198]
[1734001422869,4.1942,229.88,229.85,5.33371616]
[1734001423170,4.1942,229.88,229.84,88.37989198]
[1734001423368,12.83601222,229.98,229.85,5.33252458]
[1734001423675,2.02,229.97,229.86,5.33252458]
[1734001423864,2.02,229.97,229.84,87.94129198]
[1734001424063,2.02,229.97,229.87,5.33337511]
[1734001424262,2.02,229.97,229.84,87.94129198]
[1734001424669,2.1738,229.93,229.88,2.1742]
[1734001424868,2.1738,229.93,229.89,5.33469451]
[1734001425070,2.1738,229.93,229.88,2.1742]
[1734001425267,2.1738,229.93,229.89,5.33469347]
[1734001425464,2.1738,229.93,229.88,2.1742]
[1734001425671,2.1738,229.93,229.89,5.33459041]
[1734001425973,4.1935,229.96,229.9,7.50853862]
[1734001426173,4.1935,229.96,229.87,3.3518]
[1734001426373,2.02,229.96,229.88,5.33450955]
[1734001426673,2.02,229.96,229.89,5.33450955]
[1734001426970,2.02,229.96,229.87,3.3518]
[1734001427362,2.1739,229.93,229.88,5.33459446]
[1734001427563,2.02,229.96,229.89,5.33459446]
[1734001427871,2.02,229.96,229.87,5.526]
[1734001428068,2.02,229.96,229.88,5.33458923]
[1734001428269,2.02,229.96,229.89,5.33458923]
[1734001428470,2.02,229.96,229.87,5.526]
[1734001428771,2.1739,229.93,229.88,5.33439389]
[1734001428971,2.1739,229.93,229.87,5.526]
[1734001429166,2.1739,229.93,229.88,5.33438174]
[1734001429370,2.1739,229.93,229.87,5.526]
[1734001429570,2.1739,229.93,229.88,5.33426027]
[1734001429768,2.1739,229.92,229.87,5.526]
[1734001429969,2.1739,229.92,229.88,5.33426027]
[1734001430166,2.02,229.96,229.85,2.1744]
[1734001430371,14.85601222,229.95,229.86,5.33423942]
[1734001430572,14.85601222,229.95,229.84,87.94129198]
[1734001430768,14.85601222,229.95,229.85,5.33440166]
[1734001430965,14.85601222,229.95,229.84,87.94129198]
[1734001431171,8.24682208,229.91,229.85,5.3342739]
[1734001431374,2.02,229.9,229.84,96.18811406]
[1734001431568,2.02,229.9,229.85,5.33342357]
[1734001431772,8.24682208,229.89,229.84,86.20539198]
[1734001432267,2.1744,229.87,229.84,86.20539198]
[1734001432470,2.02,229.88,229.81,2.1749]
[1734001432766,8.24682208,229.87,229.82,5.33335646]
[1734001432965,2.02,229.88,229.78,8.24682208]
[1734001432966,2.1747,229.84,229.78,8.24682208]
[1734001433166,2.1747,229.84,229.79,7.50865474]
[1734001433367,2.02,229.88,229.8,5.33410865]
[1734001433562,2.1748,229.83,229.76,1.7602]
[1734001433761,4.1948,229.83,229.77,5.33265088]
[1734001433961,4.1948,229.83,229.78,5.33265088]
[1734001434166,4.1948,229.83,229.79,5.33265088]
[1734001434363,4.1948,229.83,229.8,5.33265088]
[1734001434564,4.1948,229.83,229.78,2.1752]
[1734001434774,4.1948,229.83,229.79,5.33182345]
[1734001434970,4.1948,229.83,229.8,5.33182345]
[1734001435172,4.1948,229.83,229.78,2.1752]
[1734001435365,4.1948,229.83,229.79,5.33183427]
[1734001435565,4.1948,229.83,229.8,5.33183427]
[1734001435771,2.1753,229.78,229.73,2.1756]
[1734001436073,2.1753,229.78,229.74,5.33113936]
[1734001436264,14.91214137,229.83,229.75,5.33113936]
[1734001436480,2.02,229.82,229.71,2.1758]
[1734001436772,2.02,229.82,229.73,5.32901714]
[1734001437074,2.1754,229.77,229.74,5.32901714]
[1734001437375,2.1754,229.77,229.69,2.1759]
[1734001437376,2.02,229.77,229.69,2.1759]
[1734001437673,2.02,229.77,229.7,5.3266323]
[1734001437872,2.02,229.77,229.71,5.3266323]
[1734001438075,2.02,229.77,229.68,3.294]
[1734001438370,14.91214137,229.77,229.69,5.32685784]
[1734001438673,14.91214137,229.77,229.62,19.98994137]
[1734001438874,14.91214137,229.77,229.65,2.1764]
[1734001439072,14.91214137,229.77,229.66,5.32344667]
[1734001439373,14.91214137,229.77,229.67,5.32344667]
[1734001439675,14.91214137,229.77,229.65,2.1764]
[1734001439975,2.1758,229.72,229.65,2.1764]
[1734001440177,4.1958,229.72,229.66,7.49560643]
[1734001440372,2.176,229.7,229.67,5.31930643]
[1734001440573,2.02,229.72,229.62,5.0778]
[1734001440771,2.02,229.72,229.63,5.31892612]
[1734001441073,2.02,229.72,229.64,5.31892612]
[1734001441274,2.02,229.72,229.62,7.2544]
[1734001441275,2.02,229.72,229.65,5.31892612]
[1734001441473,2.1762,229.67,229.62,5.0778]
[1734001441670,2.02,229.66,229.63,5.31436171]
[1734001441866,2.02,229.66,229.62,5.0778]
[1734001441867,2.02,229.66,229.64,5.31436308]
[1734001442067,2.02,229.66,229.62,5.0778]
[1734001442370,2.02,229.7,229.63,18.20675283]
[1734001442567,12.89214137,229.77,229.63,18.20675283]
[1734001442568,2.02,229.71,229.64,5.31461146]
[1734001442775,2.02,229.71,229.65,2.1764]
[1734001443476,2.02,229.72,229.63,12.89214137]
[1734001443672,2.02,229.75,229.66,12.89214137]
[1734001443872,2.02,229.75,229.67,5.30683317]
[1734001444072,2.02,229.75,229.68,2.1761]
[1734001444277,2.02,229.75,229.66,12.89214137]
[1734001444572,2.02,229.75,229.63,12.89214137]
[1734001444770,2.02,229.75,229.65,2.1763]
[1734001445177,2.1758,229.72,229.66,2.1763]
[1734001446072,2.02,229.75,229.64,2.1764]
[1734001446073,2.1759,229.71,229.64,2.1764]
[1734001446275,2.02,229.7,229.64,2.1764]
[1734001446571,2.02,229.7,229.63,12.89214137]
[1734001446773,2.02,229.7,229.62,7.2544]
[1734001446968,2.02,229.7,229.63,5.300902]
[1734001447273,2.02,229.7,229.62,5.0778]
[1734001447474,2.02,229.7,229.62,1.6588]
[1734001448076,2.02,229.7,229.61,2.1768]
[1734001448579,2.1763,229.66,229.61,2.1768]
[1734001449372,2.02,229.7,229.59,2.177]
[1734001449576,2.02,229.7,229.6,5.29747828]
[1734001449777,2.02,229.7,229.61,5.29747828]
[1734001449977,2.02,229.7,229.57,12.89214137]
[1734001449978,2.02,229.7,229.57,2.1771]
[1734001450275,2.02,229.7,229.58,5.29749642]
[1734001450477,2.02,229.7,229.59,5.29749642]
[1734001450478,2.1765,229.65,229.59,5.29749642]
[1734001450676,2.02,229.64,229.6,5.29749642]
[1734001450877,2.02,229.64,229.58,2.177]
[1734001451078,4.1965,229.64,229.59,5.29800155]
[1734001451274,4.1965,229.64,229.6,5.29800155]
[1734001451471,2.02,229.64,229.54,14.51614137]
[1734001451675,2.02,229.68,229.63,2.1766]
[1734001451868,12.89214137,229.74,229.58,18.05906552]
[1734001451869,12.89214137,229.74,229.61,12.89214137]
[1734001452072,2.02,229.73,229.61,12.89214137]
[1734001452269,5.29253782,229.8,229.64,12.89214137]
[1734001452571,14.91214137,229.79,229.64,12.89214137]
[1734001452768,12.89214137,229.79,229.65,5.29770279]
[1734001452981,2.02,229.78,229.64,12.89214137]
[1734001453476,12.89214137,229.76,229.65,5.29766091]
[1734001453675,12.89214137,229.76,229.61,12.89214137]
[1734001453871,12.89214137,229.73,229.62,5.29917626]
[1734001454071,2.02,229.72,229.63,5.29917626]
[1734001454286,2.1763,229.67,229.58,5.16692415]
[1734001454575,2.02,229.67,229.58,5.16692415]
[1734001454781,4.1963,229.67,229.61,2.1767]
[1734001454972,4.1963,229.67,229.62,5.30120422]
[1734001455177,4.1963,229.67,229.58,5.16692415]
[1734001455378,2.1763,229.66,229.61,2.1767]
[1734001455677,2.1763,229.66,229.62,5.30182481]
[1734001455880,2.1763,229.66,229.61,2.1767]
[1734001456070,2.1764,229.65,229.62,5.30099988]
[1734001456274,2.1764,229.65,229.61,2.1767]
[1734001456575,2.1764,229.65,229.62,5.30210877]
[1734001456878,2.1764,229.65,229.61,2.1767]
[1734001457074,2.1764,229.65,229.62,5.30205609]
[1734001457277,2.1764,229.65,229.63,5.30394272]
[1734001457580,2.1764,229.65,229.61,2.1767]
[1734001457878,2.02,229.67,229.62,5.30328888]
[1734001458076,2.02,229.67,229.53,18.20974137]
[1734001458279,2.1769,229.6,229.56,2.1772]
[1734001458580,2.02,229.67,229.57,5.30352192]
[1734001458783,2.02,229.67,229.58,5.30352192]
[1734001458975,2.02,229.67,229.59,5.30352192]
[1734001459177,2.1764,229.65,229.6,5.30352192]
[1734001459378,2.02,229.67,229.61,5.30352192]
[1734001459678,14.91214137,229.67,229.55,5.29085399]
[1734001459876,14.91214137,229.67,229.56,5.30508314]
[1734001460073,14.91214137,229.67,229.55,5.29085399]
[1734001460074,14.91214137,229.67,229.57,5.30508314]
[1734001460278,14.91214137,229.67,229.58,5.30508314]
[1734001460480,14.91214137,229.67,229.57,2.1772]
[1734001460790,14.91214137,229.67,229.58,5.30525212]
[1734001460979,14.91214137,229.67,229.59,5.30525212]
[1734001461181,14.91214137,229.67,229.57,2.1772]
[1734001461383,14.91214137,229.67,229.58,5.30699428]
[1734001461583,2.1768,229.62,229.59,5.30699428]
[1734001461883,3.4974,229.74,229.6,5.30574685]
[1734001461884,2.02,229.66,229.6,5.30574685]
[1734001462085,5.29253782,229.8,229.57,2.02]
[1734001462086,2.02,229.7,229.62,12.89214137]
[1734001462274,12.89214137,229.76,229.65,2.1763]
[1734001462275,2.02,229.71,229.65,2.1763]
[1734001462480,2.02,229.71,229.66,5.30574685]
[1734001462676,2.02,229.71,229.65,2.1763]
[1734001462875,2.02,229.71,229.66,5.30608666]
[1734001463084,2.02,229.71,229.67,7.48228666]
[1734001463284,2.02,229.71,229.67,2.1762]
[1734001463578,12.89214137,229.79,229.67,2.1762]
[1734001463789,12.89214137,229.79,229.63,1.7416]
[1734001463790,12.89214137,229.76,229.65,2.1763]
[1734001463980,12.89214137,229.76,229.66,5.30667639]
[1734001464181,12.89214137,229.76,229.67,5.30667639]
[1734001464383,12.89214137,229.76,229.63,1.7416]
[1734001464384,2.1761,229.69,229.63,1.7416]
[1734001464583,2.02,229.71,229.64,5.30732006]
[1734001464885,2.02,229.7,229.65,5.30732006]
[1734001465089,2.02,229.7,229.63,3.9181]
[1734001465090,2.1762,229.68,229.66,5.30732006]
[1734001465389,2.1762,229.68,229.63,3.9181]
[1734001465685,2.02,229.7,229.64,5.30796049]
[1734001465883,2.02,229.7,229.63,1.7416]
[1734001466083,14.91214137,229.7,229.64,5.30836992]
[1734001466281,14.91214137,229.7,229.58,2.1771]
[1734001466492,14.91214137,229.7,229.59,5.30912423]
[1734001466682,14.91214137,229.7,229.55,4.9708]
[1734001466683,2.1771,229.58,229.55,4.9708]
[1734001466884,2.02,229.6,229.56,5.30957808]
[1734001467085,2.02,229.6,229.57,5.30957808]
[1734001467387,2.02,229.6,229.55,4.9708]
[1734001467388,2.177,229.59,229.58,5.30957808]
[1734001468681,2.1775,229.54,229.47,12.89214137]
[1734001468889,2.1775,229.54,229.48,5.30981064]
[1734001468890,4.1975,229.54,229.48,5.30981064]
[1734001469081,2.1776,229.53,229.49,5.30981064]
[1734001469286,2.02,229.54,229.5,5.30981064]
[1734001469488,2.02,229.54,229.51,5.30981064]
[1734001469690,2.02,229.54,229.52,5.30981064]
[1734001469886,2.02,229.54,229.44,12.89214137]
[1734001470390,2.1776,229.52,229.44,12.89214137]
[1734001470590,2.02,229.54,229.45,5.31270449]
[1734001470790,2.02,229.54,229.46,5.31270449]
[1734001470987,2.02,229.54,229.44,12.89214137]
[1734001470988,2.02,229.54,229.47,5.31270449]
[1734001471196,2.02,229.54,229.48,5.31270449]
[1734001471398,2.1778,229.51,229.49,5.31270449]
[1734001471594,2.1778,229.51,229.46,2.1782]
[1734001471796,2.1778,229.51,229.47,5.31162904]
[1734001471998,2.1778,229.51,229.48,5.31162904]
[1734001472293,2.1778,229.51,229.49,5.31162904]
[1734001472495,2.1778,229.51,229.5,5.31162904]
[1734001473900,2.1778,229.51,229.45,5.1617101]
[1734001473901,2.1778,229.51,229.45,7.3400101]
[1734001474096,2.1778,229.51,229.46,5.31383606]
[1734001474402,2.02,229.54,229.47,5.31383606]
[1734001474698,2.1779,229.49,229.48,5.31383606]
[1734001474997,4.1979,229.49,229.48,5.31383606]
[1734001475699,2.02,229.49,229.48,5.31383606]
[1734001476192,2.02,229.49,229.48,5.31626673]
[1734001476802,4.1979,229.49,229.48,5.31626673]
[1734001477303,2.02,229.49,229.48,5.31626673]
[1734001478599,12.89214137,229.58,229.48,5.31626673]
[1734001478904,2.02,229.57,229.49,5.31626673]
[1734001479108,2.1775,229.54,229.47,2.178]
[1734001479300,2.02,229.57,229.5,5.31944928]
[1734001479707,2.1774,229.55,229.51,5.31944928]
[1734001480107,2.02,229.57,229.52,5.31944928]
[1734001480503,2.02,229.57,229.44,12.89214137]
[1734001480504,2.02,229.57,229.53,5.31944928]
[1734001480705,12.89214137,229.58,229.54,5.32331947]
[1734001480906,2.02,229.57,229.44,12.89214137]
[1734001481105,2.1775,229.55,229.48,2.1779]
[1734001481407,2.02,229.57,229.49,5.32329092]
[1734001481613,2.02,229.56,229.5,5.32329092]
[1734001481803,2.02,229.56,229.51,5.32329092]
[1734001482003,2.02,229.56,229.52,5.32329092]
[1734001482204,2.02,229.56,229.53,5.32329092]
[1734001482399,2.1774,229.55,229.54,5.32662147]
[1734001483313,12.89214137,229.55,229.42,10.17350755]
[1734001483507,12.89214137,229.55,229.43,5.32687084]
[1734001483709,12.89214137,229.55,229.45,2.1783]
[1734001483909,12.89214137,229.55,229.46,5.32687084]
[1734001484217,12.89214137,229.55,229.47,5.32687084]
[1734001484514,12.89214137,229.55,229.48,5.32687084]
[1734001484812,2.1778,229.51,229.49,5.32687084]
[1734001485111,2.1778,229.51,229.45,2.1783]
[1734001485112,2.02,229.5,229.45,2.1783]
[1734001485311,2.02,229.5,229.46,5.32665797]
[1734001485505,2.02,229.5,229.47,5.32665797]
[1734001485506,4.1978,229.5,229.47,5.32665797]
[1734001485704,4.1978,229.5,229.48,5.32665797]
[1734001485909,4.1978,229.5,229.49,5.32665797]
[1734001487216,2.02,229.5,229.49,5.32665797]
[1734001488515,4.1978,229.5,229.49,5.32665797]
[1734001489016,2.1782,229.46,229.42,10.17350755]
[1734001489217,2.02,229.5,229.42,10.17350755]
[1734001489617,2.1782,229.47,229.43,5.32627252]
[1734001489812,2.02,229.5,229.44,5.32628398]
[1734001490117,2.02,229.5,229.45,5.32628398]
[1734001490312,2.02,229.5,229.46,5.32628398]
[1734001490512,2.02,229.5,229.47,5.32628398]
[1734001490815,2.02,229.5,229.34,4.9126]
[1734001490816,2.1785,229.43,229.34,4.9126]
[1734001491116,2.02,229.42,229.36,5.32749908]
[1734001491311,2.02,229.42,229.37,5.32749908]
[1734001491513,4.1986,229.42,229.38,7.50649908]
[1734001491709,4.1986,229.42,229.39,5.32749908]
[1734001491907,2.02,229.42,229.4,5.32749908]
[1734001492107,2.02,229.42,229.34,8.48809525]
[1734001492814,2.1788,229.4,229.35,5.32612202]
[1734001493014,2.02,229.41,229.36,5.32612202]
[1734001493321,12.89214137,229.5,229.37,5.32612202]
[1734001493322,2.02,229.42,229.37,5.32612202]
[1734001493520,2.02,229.42,229.38,5.32612202]
[1734001493714,2.02,229.42,229.39,5.32612202]
[1734001494018,2.02,229.42,229.4,5.32612202]
[1734001494217,2.02,229.42,229.41,5.32612202]
[1734001494419,2.02,229.42,229.41,5.32347472]
[1734001494614,2.02,229.42,229.34,3.3047]
[1734001494831,2.02,229.42,229.35,5.32381606]
[1734001495212,2.02,229.42,229.36,5.32381606]
[1734001495531,2.02,229.42,229.37,5.32381606]
[1734001495720,2.02,229.42,229.29,3.4523]
[1734001495919,2.02,229.42,229.3,5.32232031]
[1734001496119,12.89214137,229.44,229.31,5.32232031]
[1734001496319,2.02,229.45,229.33,12.89214137]
[1734001496527,2.02,229.45,229.34,5.32232031]
[1734001496817,2.1788,229.4,229.35,7.50152031]
[1734001497023,2.02,229.39,229.36,5.32232031]
[1734001497224,2.02,229.39,229.35,2.1792]
[1734001497413,4.1989,229.39,229.36,5.31960906]
[1734001497618,2.02,229.39,229.3,5.26644418]
[1734001497815,2.02,229.39,229.31,5.32064964]
[1734001498022,2.02,229.39,229.3,5.26644418]
[1734001498216,2.02,229.39,229.32,5.3206498]
[1734001498516,2.02,229.39,229.3,5.26644418]
[1734001498517,2.02,229.39,229.33,5.32034048]
[1734001498719,2.02,229.39,229.3,5.26644418]
[1734001498720,2.1792,229.36,229.34,5.32034048]
[1734001498920,2.1792,229.36,229.35,5.32034048]
[1734001499424,2.02,229.39,229.35,5.32034048]
[1734001499621,2.02,229.39,229.3,5.26644418]
[1734001499925,2.02,229.39,229.31,5.31955574]
[1734001500228,2.1792,229.37,229.32,2.1795]
[1734001500526,2.1792,229.37,229.33,5.31955574]
[1734001500722,2.1792,229.37,229.34,5.31955574]
[1734001501024,2.1792,229.37,229.32,2.1795]
[1734001501225,2.1792,229.37,229.33,5.32058721]
[1734001501422,2.1792,229.37,229.34,5.32058721]
[1734001501623,2.1792,229.37,229.32,2.1795]
[1734001501827,12.89214137,229.44,229.34,2.1793]
[1734001502026,2.02,229.43,229.35,5.319775]
[1734001502323,2.02,229.43,229.37,2.1791]
[1734001502324,2.1787,229.42,229.37,2.1791]
[1734001502521,2.02,229.43,229.3,20.17858555]
[1734001502720,2.02,229.43,229.31,5.31990153]
[1734001502925,2.02,229.43,229.35,2.1792]
[1734001502926,2.1788,229.4,229.35,2.1792]
[1734001503126,2.1788,229.4,229.36,5.31990153]
[1734001503319,2.1788,229.4,229.37,5.31990153]
[1734001503527,2.1787,229.42,229.38,2.179]
[1734001503821,12.89214137,229.47,229.39,5.3199497]
[1734001504025,3.2375,229.53,229.4,5.31967529]
[1734001504222,2.02,229.49,229.41,5.31954223]
[1734001504419,2.02,229.49,229.42,5.31954223]
[1734001504618,2.02,229.49,229.36,12.89214137]
[1734001504820,2.1782,229.46,229.41,2.1786]
[1734001505020,2.1782,229.46,229.42,5.32050543]
[1734001505222,2.1781,229.48,229.43,5.32044341]
[1734001505416,2.02,229.49,229.42,2.1786]
[1734001505622,2.02,229.49,229.43,5.32109297]
[1734001505819,2.02,229.49,229.42,2.1786]
[1734001506015,2.02,229.49,229.43,5.32107526]
[1734001506224,2.1781,229.47,229.42,2.1786]
[1734001506520,2.02,229.49,229.43,5.32130155]
[1734001506819,2.02,229.49,229.42,2.1786]
[1734001507018,2.1782,229.47,229.43,5.32189377]
[1734001507416,2.02,229.49,229.38,3.4828]
[1734001507621,2.1783,229.46,229.41,2.1787]
[1734001507915,2.1783,229.46,229.42,5.32488874]
[1734001508115,2.1783,229.46,229.41,2.1787]
[1734001508316,2.1783,229.45,229.42,5.32475737]
[1734001508526,2.1783,229.45,229.43,5.32475737]
[1734001508729,2.1787,229.41,229.38,3.4828]
[1734001508921,2.1787,229.41,229.39,5.32855198]
[1734001509121,2.1787,229.41,229.4,5.32855198]
[1734001509519,2.1786,229.42,229.38,3.4828]
[1734001509726,2.1786,229.42,229.4,5.33282308]
[1734001509925,2.02,229.43,229.41,5.33282308]
[1734001510128,2.02,229.43,229.42,5.33282308]
[1734001510427,4.1985,229.43,229.42,5.33282308]
[1734001511724,2.1789,229.39,229.34,2.1793]
[1734001511927,2.02,229.43,229.35,5.34094028]
[1734001512127,2.02,229.43,229.36,5.34094028]
[1734001512327,2.02,229.43,229.37,5.34094028]
[1734001512622,2.02,229.43,229.38,5.34094028]
[1734001512930,2.1793,229.35,229.32,1.7767]
[1734001513120,4.1993,229.35,229.33,5.34262212]
[1734001513321,4.1993,229.35,229.34,5.34262212]
[1734001514423,2.1793,229.35,229.34,5.34262212]
[1734001514728,2.02,229.35,229.34,5.34262212]
[1734001515529,12.89214137,229.43,229.34,5.34262212]
[1734001515726,2.02,229.42,229.35,5.34262212]
[1734001516029,2.02,229.43,229.36,5.34262212]
[1734001516230,2.02,229.43,229.37,7.09612212]
[1734001516430,2.02,229.43,229.38,5.34262212]
[1734001516626,2.02,229.43,229.39,5.34262212]
[1734001516821,2.02,229.43,229.34,3.2815]
[1734001517033,2.02,229.43,229.35,5.34360512]
[1734001517330,2.02,229.43,229.34,3.2815]
[1734001517331,2.02,229.43,229.36,5.34360512]
[1734001517520,2.02,229.43,229.37,5.34360512]
[1734001517726,2.02,229.43,229.38,5.34360512]
[1734001517727,14.91214137,229.43,229.38,5.34360512]
[1734001517933,14.91214137,229.43,229.34,3.2815]
[1734001518129,14.91214137,229.43,229.35,5.34397334]
[1734001518326,14.91214137,229.43,229.36,5.34397334]
[1734001518624,2.1791,229.38,229.37,5.34397334]
[1734001518823,2.02,229.38,229.37,5.34397334]
[1734001519028,4.1989,229.39,229.37,5.34397334]
[1734001519224,4.1989,229.39,229.38,5.34397334]
[1734001522831,2.02,229.39,229.38,5.34397334]
[1734001523032,2.02,229.4,229.38,5.34397334]
[1734001523335,2.02,229.4,229.39,5.34397334]
[1734001523526,12.89214137,229.48,229.39,5.34397334]
[1734001523527,2.02,229.42,229.39,5.34397334]
[1734001523731,2.02,229.42,229.4,5.34397334]
[1734001523932,12.89214137,229.48,229.33,12.89214137]
[1734001524126,12.89214137,229.48,229.37,2.1791]
[1734001524127,2.1786,229.43,229.37,2.1791]
[1734001524326,2.1786,229.43,229.33,12.89214137]
[1734001524327,2.1786,229.43,229.38,5.34395452]
[1734001524534,2.1786,229.43,229.39,5.34395452]
[1734001524734,45.34,229.49,229.4,5.34395452]
[1734001525034,2.02,229.48,229.4,12.89214137]
[1734001525337,2.02,229.48,229.41,6.96349711]
[1734001525529,2.1778,229.51,229.43,12.89214137]
[1734001525736,2.02,229.5,229.45,2.1783]
[1734001526131,4.1978,229.5,229.46,5.34567863]
[1734001526330,2.02,229.5,229.47,5.34567863]
[1734001526535,2.02,229.5,229.48,5.34567863]
[1734001526736,2.02,229.5,229.41,1.6187]
[1734001526737,2.1781,229.47,229.41,1.6187]
[1734001527038,2.02,229.5,229.42,5.34686261]
[1734001527241,2.02,229.5,229.41,1.6187]
[1734001527441,2.1785,229.43,229.42,5.34754706]
[1734001528136,2.1784,229.44,229.41,1.6187]
[1734001528440,2.02,229.45,229.41,1.6187]
[1734001528441,2.02,229.45,229.42,5.34902263]
[1734001528635,2.02,229.48,229.43,5.34902263]
[1734001528934,2.1783,229.45,229.41,1.6187]
[1734001529140,2.1783,229.45,229.42,5.35011777]
[1734001529336,2.1783,229.45,229.43,5.35011777]
[1734001529539,2.1783,229.45,229.41,1.6187]
[1734001529729,2.1783,229.45,229.42,5.35110284]
[1734001529933,2.1783,229.45,229.43,5.35110284]
[1734001530131,2.02,229.47,229.34,14.91214137]
[1734001530335,2.02,229.47,229.36,5.35116117]
[1734001530537,2.02,229.47,229.37,7.53016117]
[1734001530739,2.02,229.47,229.38,5.35116117]
[1734001530939,2.02,229.47,229.39,5.35116117]
[1734001531141,2.1784,229.44,229.4,5.35116117]
[1734001531338,12.89214137,229.51,229.41,5.35116117]
[1734001531539,2.04,229.5,229.42,5.35116117]
[1734001531739,2.178,229.48,229.43,5.35116117]
[1734001531935,2.04,229.5,229.44,5.35116117]
[1734001532142,2.04,229.5,229.45,5.35116117]
[1734001532345,2.04,229.5,229.46,5.35116117]
[1734001532645,2.04,229.5,229.47,5.35116117]
[1734001532841,2.04,229.5,229.4,12.89214137]
[1734001533040,2.04,229.5,229.41,5.35390002]
[1734001533235,2.04,229.5,229.42,5.35390002]
[1734001533443,2.04,229.5,229.43,5.35390002]
[1734001533635,4.2179,229.5,229.45,2.1782]
[1734001533845,4.2179,229.5,229.46,5.35390002]
[1734001534044,4.2179,229.5,229.47,5.35390002]
[1734001534342,4.2179,229.5,229.45,2.1782]
[1734001534343,2.1779,229.49,229.45,2.1782]
[1734001534544,2.1779,229.49,229.48,5.35460018]
[1734001534843,2.04,229.5,229.46,5.35460018]
[1734001535044,2.178,229.49,229.47,5.35460018]
[1734001535247,2.178,229.49,229.48,5.35460018]
[1734001536747,2.04,229.51,229.48,5.35460018]
[1734001536939,2.04,229.53,229.48,5.35460018]